[Event "I Torneo de Maestras 2019"]
[Site "Corralejo"]
[Date "2019.09.21"]
[Round "1.1"]
[White "Thomas, Anysia"]
[Black "Palma, Maria"]
[Result "1-0"]
[ECO "E04"]
[WhiteElo "2112"]
[BlackElo "2100"]
[Annotator "ChessBase"]
[PlyCount "70"]
[EventDate "2019.09.21"]
[EventType "tourn"]
[EventCountry "ESP"]
[SourceTitle "playchess.com"]
[Source "ChessBase"]
[SourceQuality "1"]
[TimeControl "5400+30"]

1. d4 {[%emt 0:00:00]} d5 {[%emt 0:00:00]} 2. c4 {[%emt 0:00:00]} e6 {[%emt 0:00:00]} 3. Nf3 {[%emt 0:00:00]} Nf6 {[%emt 0:01:11]} 4. g3 {[%emt 0:00:00]} dxc4 {[%emt 0:01:10]} 5. Bg2 {[%emt 0:00:04]} Bb4+ {[%emt 0:00:46]} 6. Bd2 {[%emt 0:00:07]} a5 {[%emt 0:00:28]} 7. Qc2 {[%emt 0:00:45]} Bxd2+ {[%emt 0:02:04]} 8. Qxd2 {[%emt 0:00:11]} b5 {[%emt 0:02:48]} 9. Qg5 {[%emt 0:05:16]} c6 {[%emt 0:25:48]} 10. Qxg7 {[%emt 0:04:39]} Rg8 {[%emt 0:00:46]} 11. Qh6 {[%emt 0:00:06]} Bb7 {[%emt 0:05:33]} 12. Ne5 {[%emt 0:09:21]} Nbd7 {[%emt 0:13:12]} 13. O-O {[%emt 0:03:36]} Nxe5 {[%emt 0:11:50]} 14. dxe5 {[%emt 0:00:40]} Ng4 {[%emt 0:01:01]} 15. Qxh7 {[%emt 0:06:50]} Qg5 {[%emt 0:01:37]} 16. f4 {[%emt 0:07:09]} Rg7 {[%emt 0:03:56]} 17. Qe4 {[%emt 0:11:17]} Qh5 {[%emt 0:05:33]} 18. h3 {[%emt 0:00:22]} Nh6 {[%emt 0:00:30]} 19. g4 {[%emt 0:00:42]} Nxg4 {[%emt 0:02:04]} 20. hxg4 {[%emt 0:00:06]} Qxg4 {[%emt 0:00:23]} 21. Nc3 {[%emt 0:01:55]} Rb8 {[%emt 0:04:31]} 22. Qf3 {[%emt 0:06:19]} Qh4 {[%emt 0:04:03]} 23. Ne4 {[%emt 0:01:55]} Ke7 {[%emt 0:01:26]} 24. Qf2 {[%emt 0:03:34]} Rh8 {[%emt 0:09:22]} 25. Qxh4+ {[%emt 0:03:43]} Rxh4 {[%emt 0:00:02]} 26. Nd6 {[%emt 0:02:51]} Rhg4 {[%emt 0:01:48]} 27. Rf2 {[%emt 0:00:06]} Ba6 {[%emt 0:00:54]} 28. f5 {[%emt 0:00:48]} R7g5 {[%emt 0:00:35]} 29. e4 {[%emt 0:01:36]} exf5 {[%emt 0:00:26]} 30. exf5 {[%emt 0:00:37]} f6 {[%emt 0:00:25]} 31. exf6+ {[%emt 0:02:34]} Kxd6 {[%emt 0:00:31]} 32. Rd1+ {[%emt 0:00:04]} Ke5 {[%emt 0:00:28]} 33. f7 {[%emt 0:00:05]} Rxg2+ {[%emt 0:00:35]} 34. Rxg2 {[%emt 0:00:05]} Rxf5 {[%emt 0:00:06]} 35. Rf1 {[%emt 0:00:22]} Kd5 {[%emt 0:00:17]} 1-0

[Event "I Torneo de Maestras 2019"]
[Site "Corralejo"]
[Date "2019.09.21"]
[Round "1.2"]
[White "Drljevic, Ljilja"]
[Black "Rodriguez Redondo, Adhara"]
[Result "0-1"]
[ECO "A30"]
[WhiteElo "2162"]
[BlackElo "2065"]
[Annotator "ChessBase"]
[PlyCount "126"]
[EventDate "2019.09.21"]
[EventType "tourn"]
[EventCountry "ESP"]
[SourceTitle "playchess.com"]
[Source "ChessBase"]
[SourceQuality "1"]
[TimeControl "5400+30"]

1. g3 {[%emt 0:00:00]} d5 {[%emt 0:00:00]} 2. Bg2 {[%emt 0:00:00]} e6 {[%emt 0:00:00]} 3. Nf3 {[%emt 0:01:03]} c5 {[%emt 0:00:23]} 4. c4 {[%emt 0:00:54]} Nf6 {[%emt 0:04:59]} 5. O-O {[%emt 0:01:40]} Nc6 {[%emt 0:04:10]} 6. d3 {[%emt 0:02:50]} Be7 {[%emt 0:04:12]} 7. Nc3 {[%emt 0:03:10]} d4 {[%emt 0:02:24]} 8. Ne4 {[%emt 0:04:28]} Nxe4 {[%emt 0:02:30]} 9. dxe4 {[%emt 0:00:02]} e5 {[%emt 0:01:38]} 10. Ne1 {[%emt 0:02:45]} O-O {[%emt 0:03:02]} 11. f4 {[%emt 0:03:20]} Be6 {[%emt 0:04:46]} 12. b3 {[%emt 0:04:00]} f6 {[%emt 0:02:03]} 13. Nd3 {[%emt 0:01:19]} a6 {[%emt 0:07:30]} 14. Qc2 {[%emt 0:10:31]} Qc7 {[%emt 0:05:08]} 15. Ba3 {[%emt 0:07:30]} b6 {[%emt 0:10:08]} 16. Qd2 {[%emt 0:05:29]} Na5 {[%emt 0:04:36]} 17. f5 {[%emt 0:05:13]} Bf7 {[%emt 0:04:25]} 18. g4 {[%emt 0:04:02]} Rac8 {[%emt 0:04:00]} 19. Rac1 {[%emt 0:01:07]} Nb7 {[%emt 0:03:24]} 20. e3 {[%emt 0:21:36]} Qd7 {[%emt 0:06:07]} 21. exd4 {[%emt 0:03:02]} cxd4 {[%emt 0:04:29]} 22. Bxe7 {[%emt 0:00:23]} Qxe7 {[%emt 0:00:05]} 23. Nb4 {[%emt 0:00:51]} a5 {[%emt 0:03:54]} 24. Nd5 {[%emt 0:00:27]} Bxd5 {[%emt 0:02:28]} 25. exd5 {[%emt 0:00:03]} Qc5 {[%emt 0:02:20]} 26. Kh1 {[%emt 0:02:44]} Nd6 {[%emt 0:01:16]} 27. a4 {[%emt 0:06:42]} Rce8 {[%emt 0:03:14]} 28. Rcd1 {[%emt 0:00:44]} Qa3 {[%emt 0:02:05]} 29. Rb1 {[%emt 0:01:33]} Qc5 {[%emt 0:02:15]} 30. Rbd1 {[%emt 0:00:32]} Qa3 {[%emt 0:00:54]} 31. Rb1 {[%emt 0:00:39]} Qc5 {[%emt 0:00:11]} 32. Rfd1 {[%emt 0:00:32]} Re7 {[%emt 0:02:02]} 33. Qf2 {[%emt 0:01:56]} Qc7 {[%emt 0:01:19]} 34. h4 {[%emt 0:01:27]} h6 {[%emt 0:00:43]} 35. Qd2 {[%emt 0:01:29]} Ree8 {[%emt 0:01:02]} 36. Rb2 {[%emt 0:01:24]} Qc5 {[%emt 0:00:33]} 37. Rbb1 {[%emt 0:00:40]} Qc7 {[%emt 0:00:05]} 38. Rdc1 {[%emt 0:00:13]} Rc8 {[%emt 0:01:35]} 39. b4 {[%emt 0:01:04]} axb4 {[%emt 0:02:51]} 40. Qxb4 {[%emt 0:00:04]} Qd7 {[%emt 0:00:37]} 41. Qxb6 {[%emt 0:01:16]} Nxc4 {[%emt 0:00:34]} 42. Rxc4 {[%emt 0:01:17]} Rxc4 {[%emt 0:00:13]} 43. d6 {[%emt 0:00:20]} Rc3 {[%emt 0:00:47]} 44. a5 {[%emt 0:01:07]} Rd8 {[%emt 0:00:30]} 45. Bd5+ {[%emt 0:00:25]} Kh7 {[%emt 0:00:13]} 46. a6 {[%emt 0:00:29]} Ra3 {[%emt 0:00:43]} 47. Qc7 {[%emt 0:00:36]} Rxa6 {[%emt 0:00:34]} 48. Qxd7 {[%emt 0:00:30]} Rxd7 {[%emt 0:00:04]} 49. Rb8 {[%emt 0:00:29]} g6 {[%emt 0:00:48]} 50. fxg6+ {[%emt 0:00:30]} Kxg6 {[%emt 0:00:31]} 51. Be6 {[%emt 0:00:32]} Raxd6 {[%emt 0:00:35]} 52. Bf5+ {[%emt 0:00:28]} Kg7 {[%emt 0:00:12]} 53. Bxd7 {[%emt 0:00:29]} Rxd7 {[%emt 0:00:05]} 54. Kg2 {[%emt 0:00:12]} Kg6 {[%emt 0:01:15]} 55. Kf3 {[%emt 0:00:41]} Kf7 {[%emt 0:00:31]} 56. Rb2 {[%emt 0:00:25]} Ke6 {[%emt 0:00:30]} 57. Rd2 {[%emt 0:00:39]} Kd5 {[%emt 0:00:53]} 58. Ra2 {[%emt 0:00:11]} e4+ {[%emt 0:00:00]} 59. Kf4 {[%emt 0:00:15]} e3 {[%emt 0:00:30]} 60. Kf3 {[%emt 0:01:05]} Re7 {[%emt 0:00:27]} 61. Ra5+ {[%emt 0:00:31]} Kc4 {[%emt 0:00:14]} 62. Ra4+ {[%emt 0:00:13]} Kc3 {[%emt 0:00:25]} 63. Ra2 {[%emt 0:00:49]} d3 {[%emt 0:00:18]} 0-1

[Event "I Torneo de Maestras 2019"]
[Site "Corralejo"]
[Date "2019.09.21"]
[Round "1.3"]
[White "Sosa Suarez, Carla Cristina"]
[Black "Martinez, Ayelen"]
[Result "1-0"]
[ECO "E70"]
[WhiteElo "2069"]
[BlackElo "2169"]
[Annotator "ChessBase"]
[PlyCount "105"]
[EventDate "2019.09.21"]
[EventType "tourn"]
[EventCountry "ESP"]
[SourceTitle "playchess.com"]
[Source "ChessBase"]
[SourceQuality "1"]
[TimeControl "5400+30"]

1. d4 {[%emt 0:00:00]} Nf6 {[%emt 0:01:00]} 2. c4 {[%emt 0:00:00]} g6 {[%emt 0:00:45]} 3. Nc3 {[%emt 0:00:25]} Bg7 {[%emt 0:00:13]} 4. e4 {[%emt 0:00:20]} O-O {[%emt 0:00:47]} 5. f3 {[%emt 0:01:58]} c6 {[%emt 0:00:07]} 6. Be3 {[%emt 0:04:29]} d5 {[%emt 0:01:31]} 7. e5 {[%emt 0:14:06]} Ne8 {[%emt 0:01:08]} 8. f4 {[%emt 0:05:03]} Nc7 {[%emt 0:00:09]} 9. Nf3 {[%emt 0:05:42]} Bg4 {[%emt 0:05:58]} 10. h3 {[%emt 0:08:20]} Bxf3 {[%emt 0:01:00]} 11. Qxf3 {[%emt 0:05:52]} Nba6 {[%emt 0:02:02]} 12. a3 {[%emt 0:05:48]} dxc4 {[%emt 0:04:02]} 13. Bxc4 {[%emt 0:01:09]} b5 {[%emt 0:00:41]} 14. Bb3 {[%emt 0:04:21]} b4 {[%emt 0:00:47]} 15. Ne4 {[%emt 0:01:35]} Nb5 {[%emt 0:03:27]} 16. Qf2 {[%emt 0:03:48]} bxa3 {[%emt 0:07:42]} 17. bxa3 {[%emt 0:07:16]} Qa5+ {[%emt 0:01:28]} 18. Bd2 {[%emt 0:03:42]} Qb6 {[%emt 0:03:27]} 19. Be3 {[%emt 0:03:47]} Nxa3 {[%emt 0:02:35]} 20. Qa2 {[%emt 0:05:01]} Qb4+ {[%emt 0:02:15]} 21. Nd2 {[%emt 0:02:41]} Nb5 {[%emt 0:15:15]} 22. Qxa6 {[%emt 0:00:47]} Rad8 {[%emt 0:02:24]} 23. O-O {[%emt 0:02:04]} Qc3 {[%emt 0:00:17]} 24. Rfe1 {[%emt 0:03:31]} Rxd4 {[%emt 0:02:44]} 25. Qa5 {[%emt 0:01:41]} Rd3 {[%emt 0:03:08]} 26. Qxc3 {[%emt 0:00:54]} Rxc3 {[%emt 0:00:05]} 27. Rac1 {[%emt 0:03:37]} Rd8 {[%emt 0:00:06]} 28. Rxc3 {[%emt 0:00:41]} Nxc3 {[%emt 0:00:02]} 29. Nc4 {[%emt 0:01:24]} Rb8 {[%emt 0:00:59]} 30. Bc2 {[%emt 0:01:06]} Nd5 {[%emt 0:01:13]} 31. Bd2 {[%emt 0:01:39]} Rd8 {[%emt 0:03:09]} 32. g3 {[%emt 0:01:02]} Nb6 {[%emt 0:00:13]} 33. Ba5 {[%emt 0:00:18]} Rd5 {[%emt 0:01:11]} 34. Bxb6 {[%emt 0:01:16]} axb6 {[%emt 0:00:05]} 35. Nxb6 {[%emt 0:00:08]} Rd2 {[%emt 0:02:31]} 36. Be4 {[%emt 0:00:55]} c5 {[%emt 0:02:48]} 37. Rc1 {[%emt 0:00:35]} Re2 {[%emt 0:03:23]} 38. Bf3 {[%emt 0:01:01]} Rb2 {[%emt 0:00:39]} 39. Nd7 {[%emt 0:00:28]} h5 {[%emt 0:00:31]} 40. Rxc5 {[%emt 0:00:19]} Bh6 {[%emt 0:00:16]} 41. h4 {[%emt 0:00:37]} Rd2 {[%emt 0:00:28]} 42. Rc8+ {[%emt 0:00:18]} Kg7 {[%emt 0:00:07]} 43. Nc5 {[%emt 0:00:40]} f6 {[%emt 0:01:13]} 44. e6 {[%emt 0:00:53]} g5 {[%emt 0:00:21]} 45. Re8 {[%emt 0:00:32]} gxf4 {[%emt 0:00:14]} 46. Rxe7+ {[%emt 0:00:06]} Kg6 {[%emt 0:00:11]} 47. Ne4 {[%emt 0:00:49]} Rb2 {[%emt 0:01:40]} 48. Rf7 {[%emt 0:00:16]} fxg3 {[%emt 0:00:51]} 49. Rxf6+ {[%emt 0:00:07]} Kg7 {[%emt 0:00:02]} 50. Rf7+ {[%emt 0:00:41]} Kg6 {[%emt 0:00:09]} 51. Nxg3 {[%emt 0:00:54]} Be3+ {[%emt 0:00:12]} 52. Kf1 {[%emt 0:00:27]} Rb6 {[%emt 0:01:14]} 53. Be4+ {[%emt 0:00:08]} 1-0

[Event "I Torneo de Maestras 2019"]
[Site "Corralejo"]
[Date "2019.09.21"]
[Round "1.4"]
[White "Navrotescu, Andreea-Cristiana"]
[Black "Terbe, Julianna"]
[Result "1/2-1/2"]
[ECO "B10"]
[WhiteElo "2242"]
[BlackElo "2298"]
[Annotator "ChessBase"]
[PlyCount "168"]
[EventDate "2019.09.21"]
[EventType "tourn"]
[EventCountry "ESP"]
[SourceTitle "playchess.com"]
[Source "ChessBase"]
[SourceQuality "1"]
[TimeControl "5400+30"]

1. c4 {[%emt 0:00:00]} c6 {[%emt 0:00:00]} 2. e4 {[%emt 0:00:00]} d5 {[%emt 0:00:00]} 3. exd5 {[%emt 0:00:00]} cxd5 {[%emt 0:00:00]} 4. cxd5 {[%emt 0:00:00]} Nf6 {[%emt 0:00:00]} 5. Nc3 {[%emt 0:00:00]} Nxd5 {[%emt 0:00:00]} 6. Nf3 {[%emt 0:00:01]} Nxc3 {[%emt 0:00:04]} 7. bxc3 {[%emt 0:00:07]} g6 {[%emt 0:00:04]} 8. Bb5+ {[%emt 0:13:22]} Nd7 {[%emt 0:02:38]} 9. O-O {[%emt 0:10:19]} Bg7 {[%emt 0:01:37]} 10. d4 {[%emt 0:01:49]} O-O {[%emt 0:01:25]} 11. a4 {[%emt 0:01:29]} Qc7 {[%emt 0:04:25]} 12. Ba3 {[%emt 0:02:57]} Nb6 {[%emt 0:12:32]} 13. Re1 {[%emt 0:30:43]} Bf6 {[%emt 0:01:55]} 14. a5 {[%emt 0:01:49]} Nd5 {[%emt 0:02:16]} 15. Qb3 {[%emt 0:02:04]} Nf4 {[%emt 0:01:53]} 16. Bf1 {[%emt 0:04:23]} Bf5 {[%emt 0:04:08]} 17. c4 {[%emt 0:04:12]} Ne6 {[%emt 0:07:26]} 18. Bb2 {[%emt 0:04:30]} Rfd8 {[%emt 0:01:54]} 19. Qe3 {[%emt 0:03:06]} a6 {[%emt 0:09:05]} 20. Ra2 {[%emt 0:00:32]} Rac8 {[%emt 0:07:50]} 21. d5 {[%emt 0:02:24]} Nc5 {[%emt 0:00:16]} 22. Nd4 {[%emt 0:01:24]} Bd7 {[%emt 0:02:40]} 23. g3 {[%emt 0:05:12]} Re8 {[%emt 0:03:04]} 24. Qf3 {[%emt 0:02:02]} Na4 {[%emt 0:04:44]} 25. Ba1 {[%emt 0:00:01]} Qxa5 {[%emt 0:01:00]} 26. Rb1 {[%emt 0:05:32]} Qc7 {[%emt 0:01:48]} 27. Rd2 {[%emt 0:01:45]} Nc5 {[%emt 0:03:30]} 28. Bc3 {[%emt 0:01:29]} Bg7 {[%emt 0:02:56]} 29. Re1 {[%emt 0:01:27]} e5 {[%emt 0:05:54]} 30. dxe6 {[%emt 0:01:13]} Nxe6 {[%emt 0:00:13]} 31. Nxe6 {[%emt 0:00:17]} Bxe6 {[%emt 0:00:30]} 32. Bxg7 {[%emt 0:00:25]} Kxg7 {[%emt 0:00:02]} 33. Qc3+ {[%emt 0:00:45]} Kg8 {[%emt 0:00:08]} 34. Rde2 {[%emt 0:00:25]} Red8 {[%emt 0:05:07]} 35. Rxe6 {[%emt 0:00:45]} fxe6 {[%emt 0:00:06]} 36. Bh3 {[%emt 0:00:01]} Rd6 {[%emt 0:06:52]} 37. Bxe6+ {[%emt 0:00:07]} Rxe6 {[%emt 0:00:05]} 38. Rxe6 {[%emt 0:00:03]} Rf8 {[%emt 0:02:19]} 39. Qd4 {[%emt 0:01:14]} Qg7 {[%emt 0:02:31]} 40. Qe3 {[%emt 0:01:03]} Qf7 {[%emt 0:01:31]} 41. Re7 {[%emt 0:00:33]} Qf3 {[%emt 0:02:51]} 42. Qxf3 {[%emt 0:00:25]} Rxf3 {[%emt 0:00:01]} 43. Rxb7 {[%emt 0:00:06]} Rc3 {[%emt 0:00:07]} 44. Ra7 {[%emt 0:00:12]} Rxc4 {[%emt 0:00:07]} 45. Rxa6 {[%emt 0:00:01]} Rc1+ {[%emt 0:00:37]} 46. Kg2 {[%emt 0:00:01]} Rc2 {[%emt 0:00:16]} 47. Ra7 {[%emt 0:00:04]} Rb2 {[%emt 0:00:42]} 48. h4 {[%emt 0:00:14]} Rc2 {[%emt 0:00:45]} 49. Kf3 {[%emt 0:00:10]} Rc3+ {[%emt 0:00:47]} 50. Kg2 {[%emt 0:00:12]} Rc2 {[%emt 0:00:04]} 51. g4 {[%emt 0:00:08]} Rb2 {[%emt 0:00:30]} 52. Kg3 {[%emt 0:00:09]} Rb3+ {[%emt 0:00:40]} 53. f3 {[%emt 0:00:02]} Rb4 {[%emt 0:00:07]} 54. h5 {[%emt 0:00:39]} gxh5 {[%emt 0:01:25]} 55. gxh5 {[%emt 0:00:08]} Rc4 {[%emt 0:02:41]} 56. f4 {[%emt 0:00:14]} h6 {[%emt 0:00:27]} 57. Kg4 {[%emt 0:00:18]} Rc5 {[%emt 0:00:12]} 58. Re7 {[%emt 0:00:17]} Ra5 {[%emt 0:00:49]} 59. Re5 {[%emt 0:01:23]} Ra6 {[%emt 0:00:00]} 60. Rb5 {[%emt 0:01:30]} Kf7 {[%emt 0:01:33]} 61. Rb7+ {[%emt 0:00:01]} Kg8 {[%emt 0:00:08]} 62. Re7 {[%emt 0:01:40]} Kf8 {[%emt 0:00:09]} 63. Rd7 {[%emt 0:01:16]} Kg8 {[%emt 0:00:34]} 64. Rd5 {[%emt 0:00:47]} Kf7 {[%emt 0:00:32]} 65. Kf5 {[%emt 0:00:20]} Rb6 {[%emt 0:00:34]} 66. Rd7+ {[%emt 0:00:11]} Kg8 {[%emt 0:00:17]} 67. Re7 {[%emt 0:00:31]} Rb4 {[%emt 0:01:06]} 68. Re4 {[%emt 0:01:13]} Rb5+ {[%emt 0:00:17]} 69. Kf6 {[%emt 0:00:35]} Kf8 {[%emt 0:01:03]} 70. f5 {[%emt 0:00:24]} Rb1 {[%emt 0:00:23]} 71. Kg6 {[%emt 0:01:08]} Rg1+ {[%emt 0:00:01]} 72. Kxh6 {[%emt 0:00:14]} Kf7 {[%emt 0:00:02]} 73. Re6 {[%emt 0:01:23]} Rf1 {[%emt 0:00:14]} 74. Re5 {[%emt 0:00:38]} Rh1 {[%emt 0:01:34]} 75. Kg5 {[%emt 0:00:42]} Rg1+ {[%emt 0:00:05]} 76. Kf4 {[%emt 0:00:21]} Rf1+ {[%emt 0:00:14]} 77. Kg5 {[%emt 0:00:36]} Rg1+ {[%emt 0:00:01]} 78. Kh6 {[%emt 0:00:18]} Rh1 {[%emt 0:00:01]} 79. Re6 {[%emt 0:00:55]} Rf1 {[%emt 0:00:08]} 80. Ra6 {[%emt 0:00:21]} Rxf5 {[%emt 0:01:04]} 81. Ra7+ {[%emt 0:00:01]} Kg8 {[%emt 0:00:46]} 82. Kg6 {[%emt 0:00:18]} Rf8 {[%emt 0:00:04]} 83. h6 {[%emt 0:01:10]} Rb8 {[%emt 0:01:33]} 84. Ra6 {[%emt 0:00:14]} Rc8 {[%emt 0:00:10]} 1/2-1/2

[Event "I Torneo de Maestras 2019"]
[Site "Corralejo"]
[Date "2019.09.21"]
[Round "1.5"]
[White "Guillo Longares, Cecilia"]
[Black "Safranska, Anda"]
[Result "0-1"]
[ECO "E63"]
[WhiteElo "1960"]
[BlackElo "2139"]
[Annotator "ChessBase"]
[PlyCount "188"]
[EventDate "2019.09.21"]
[EventType "tourn"]
[EventCountry "ESP"]
[SourceTitle "playchess.com"]
[Source "ChessBase"]
[SourceQuality "1"]
[TimeControl "5400+30"]

1. d4 {[%emt 0:00:00]} d6 {[%emt 0:00:00]} 2. Nf3 {[%emt 0:00:00]} g6 {[%emt 0:00:00]} 3. g3 {[%emt 0:00:00]} Bg7 {[%emt 0:00:00]} 4. Bg2 {[%emt 0:00:00]} Nf6 {[%emt 0:00:00]} 5. c4 {[%emt 0:00:00]} O-O {[%emt 0:00:15]} 6. O-O {[%emt 0:00:00]} Nc6 {[%emt 0:00:58]} 7. Nc3 {[%emt 0:00:00]} Rb8 {[%emt 0:00:42]} 8. b3 {[%emt 0:00:00]} a6 {[%emt 0:00:45]} 9. d5 {[%emt 0:00:05]} Na5 {[%emt 0:01:57]} 10. Bg5 {[%emt 0:01:08]} h6 {[%emt 0:00:47]} 11. Bd2 {[%emt 0:00:05]} c5 {[%emt 0:00:06]} 12. dxc6 {[%emt 0:00:19]} Nxc6 {[%emt 0:01:44]} 13. Rc1 {[%emt 0:00:52]} Bd7 {[%emt 0:00:24]} 14. Nd5 {[%emt 0:00:50]} Ne4 {[%emt 0:10:20]} 15. Be3 {[%emt 0:02:45]} b5 {[%emt 0:01:15]} 16. Nd4 {[%emt 0:04:02]} Nxd4 {[%emt 0:02:19]} 17. Bxd4 {[%emt 0:01:06]} Ng5 {[%emt 0:11:58]} 18. c5 {[%emt 0:16:02]} Bxd4 {[%emt 0:16:00]} 19. Qxd4 {[%emt 0:00:13]} Ne6 {[%emt 0:00:28]} 20. Qh4 {[%emt 0:00:17]} Nxc5 {[%emt 0:01:11]} 21. Nxe7+ {[%emt 0:22:23]} Kh7 {[%emt 0:00:35]} 22. b4 {[%emt 0:07:31]} g5 {[%emt 0:15:00]} 23. Qd4 {[%emt 0:00:25]} Qxe7 {[%emt 0:00:11]} 24. bxc5 {[%emt 0:00:05]} dxc5 {[%emt 0:00:03]} 25. Rxc5 {[%emt 0:00:10]} Be6 {[%emt 0:00:15]} 26. Be4+ {[%emt 0:06:42]} Kg8 {[%emt 0:02:21]} 27. Qe3 {[%emt 0:07:54]} Rfe8 {[%emt 0:04:20]} 28. Bc6 {[%emt 0:04:48]} Rec8 {[%emt 0:00:13]} 29. Rfc1 {[%emt 0:02:28]} Qf6 {[%emt 0:02:16]} 30. Qa3 {[%emt 0:05:58]} Bc4 {[%emt 0:08:52]} 31. Bb7 {[%emt 0:06:39]} Rxc5 {[%emt 0:03:07]} 32. Qxc5 {[%emt 0:00:02]} Rd8 {[%emt 0:00:31]} 33. Qe3 {[%emt 0:02:28]} Bxa2 {[%emt 0:00:45]} 34. Qa3 {[%emt 0:06:32]} Bc4 {[%emt 0:00:59]} 35. Qxa6 {[%emt 0:01:54]} Qxa6 {[%emt 0:01:03]} 36. Bxa6 {[%emt 0:00:01]} Bxe2 {[%emt 0:00:12]} 37. Re1 {[%emt 0:01:55]} Bc4 {[%emt 0:03:21]} 38. Rc1 {[%emt 0:02:05]} g4 {[%emt 0:00:45]} 39. Rxc4 {[%emt 0:01:03]} bxc4 {[%emt 0:00:05]} 40. Bxc4 {[%emt 0:00:02]} Kg7 {[%emt 0:00:42]} 41. Kg2 {[%emt 0:00:54]} Rd2 {[%emt 0:00:11]} 42. Kf1 {[%emt 0:00:38]} f5 {[%emt 0:00:38]} 43. Ke1 {[%emt 0:00:32]} Rb2 {[%emt 0:00:05]} 44. Bd3 {[%emt 0:00:25]} Kf6 {[%emt 0:00:05]} 45. Kf1 {[%emt 0:00:23]} Ke5 {[%emt 0:00:07]} 46. Kg2 {[%emt 0:00:33]} Rd2 {[%emt 0:01:27]} 47. Bb5 {[%emt 0:00:42]} f4 {[%emt 0:00:17]} 48. gxf4+ {[%emt 0:00:25]} Kxf4 {[%emt 0:00:06]} 49. Be8 {[%emt 0:00:31]} Rd3 {[%emt 0:00:35]} 50. Bf7 {[%emt 0:00:23]} Rh3 {[%emt 0:00:58]} 51. Bd5 {[%emt 0:00:41]} Ra3 {[%emt 0:02:19]} 52. Bf7 {[%emt 0:00:28]} Ra7 {[%emt 0:00:22]} 53. Be6 {[%emt 0:00:14]} Re7 {[%emt 0:01:06]} 54. Bc8 {[%emt 0:00:41]} Re2 {[%emt 0:00:15]} 55. Bd7 {[%emt 0:00:31]} h5 {[%emt 0:00:12]} 56. Bb5 {[%emt 0:00:33]} Rb2 {[%emt 0:00:08]} 57. Bd7 {[%emt 0:00:34]} h4 {[%emt 0:00:12]} 58. Bc6 {[%emt 0:00:31]} g3 {[%emt 0:01:21]} 59. hxg3+ {[%emt 0:00:26]} hxg3 {[%emt 0:00:03]} 60. Kf1 {[%emt 0:00:28]} Rxf2+ {[%emt 0:00:08]} 61. Kg1 {[%emt 0:00:14]} Rd2 {[%emt 0:00:56]} 62. Bb7 {[%emt 0:00:23]} Rd7 {[%emt 0:02:35]} 63. Bc6 {[%emt 0:00:48]} Rd1+ {[%emt 0:00:40]} 64. Kg2 {[%emt 0:00:13]} Rd2+ {[%emt 0:00:05]} 65. Kg1 {[%emt 0:00:18]} Kg4 {[%emt 0:01:00]} 66. Bb7 {[%emt 0:01:04]} Rc2 {[%emt 0:01:57]} 67. Be4 {[%emt 0:00:36]} Rc5 {[%emt 0:01:35]} 68. Kg2 {[%emt 0:00:22]} Kf4 {[%emt 0:00:15]} 69. Bb7 {[%emt 0:00:05]} Rc2+ {[%emt 0:00:23]} 70. Kg1 {[%emt 0:00:03]} Ke3 {[%emt 0:00:06]} 71. Bd5 {[%emt 0:01:12]} Rc5 {[%emt 0:03:34]} 72. Bb7 {[%emt 0:00:03]} Kf4 {[%emt 0:00:18]} 73. Kg2 {[%emt 0:00:11]} Kg4 {[%emt 0:00:13]} 74. Bf3+ {[%emt 0:00:42]} Kh4 {[%emt 0:00:04]} 75. Be4 {[%emt 0:00:09]} Re5 {[%emt 0:00:12]} 76. Bf3 {[%emt 0:01:14]} Re3 {[%emt 0:00:40]} 77. Bc6 {[%emt 0:00:20]} Re2+ {[%emt 0:03:31]} 78. Kg1 {[%emt 0:00:08]} Rb2 {[%emt 0:01:22]} 79. Be4 {[%emt 0:01:21]} Rf2 {[%emt 0:01:47]} 80. Bc6 {[%emt 0:00:35]} Kg5 {[%emt 0:00:05]} 81. Bd5 {[%emt 0:00:25]} Rd2 {[%emt 0:00:10]} 82. Bb7 {[%emt 0:00:28]} Kf5 {[%emt 0:00:17]} 83. Bc8+ {[%emt 0:00:27]} Kf4 {[%emt 0:00:35]} 84. Bb7 {[%emt 0:00:05]} Ra2 {[%emt 0:01:20]} 85. Bd5 {[%emt 0:00:36]} Rc2 {[%emt 0:00:19]} 86. Bb7 {[%emt 0:00:17]} g2 {[%emt 0:00:46]} 87. Kh2 {[%emt 0:00:15]} Rc7 {[%emt 0:00:08]} 88. Bxg2 {[%emt 0:01:23]} Rh7+ {[%emt 0:00:11]} 89. Kg1 {[%emt 0:00:13]} Kg3 {[%emt 0:00:04]} 90. Bd5 {[%emt 0:00:54]} Rd7 {[%emt 0:00:21]} 91. Bb3 {[%emt 0:00:14]} Rb7 {[%emt 0:00:18]} 92. Bc2 {[%emt 0:00:26]} Rc7 {[%emt 0:00:06]} 93. Bd3 {[%emt 0:00:06]} Rc1+ {[%emt 0:00:04]} 94. Bf1 {[%emt 0:00:06]} Ra1 {[%emt 0:00:04]} 0-1

[Event "I Torneo de Maestras 2019"]
[Site "Corralejo"]
[Date "2019.09.22"]
[Round "2.1"]
[White "Palma, Maria"]
[Black "Safranska, Anda"]
[Result "0-1"]
[ECO "B06"]
[WhiteElo "2100"]
[BlackElo "2139"]
[Annotator "NA"]
[PlyCount "92"]
[EventDate "2019.09.21"]
[EventType "tourn"]
[EventCountry "ESP"]
[SourceTitle "playchess.com"]
[Source "ChessBase"]
[SourceQuality "1"]
[TimeControl "5400+30"]

1. d4 {[%emt 0:00:00]} d6 {[%emt 0:00:00]} 2. e4 {[%emt 0:00:00]} g6 {[%emt 0:00:00]} 3. Nc3 {[%emt 0:00:00]} Bg7 {[%emt 0:00:07]} 4. f4 {[%emt 0:00:00]} a6 {[%emt 0:01:45]} 5. Nf3 {[%emt 0:03:08]} b5 {[%emt 0:01:09]} 6. Be3 {[%emt 0:16:09]} Bb7 {[%emt 0:01:15]} 7. a3 {[%emt 0:04:35]} Nd7 {[%emt 0:00:12]} 8. d5 {[%emt 0:08:59]} c5 {[%emt 0:00:57]} 9. dxc6 {[%emt 0:09:00]} Bxc6 {[%emt 0:00:40]} 10. Nd4 {[%emt 0:07:13]} Bb7 {[%emt 0:00:30]} 11. Be2 {[%emt 0:02:24]} Ngf6 {[%emt 0:02:01]} 12. Bf3 {[%emt 0:01:38]} e5 {[%emt 0:07:03]} 13. Nde2 {[%emt 0:08:05]} Qc7 {[%emt 0:00:41]} 14. O-O {[%emt 0:02:01]} O-O {[%emt 0:03:12]} 15. Qd2 {[%emt 0:06:39]} exf4 {[%emt 0:10:17]} 16. Bxf4 {[%emt 0:07:59]} Ne5 {[%emt 0:00:20]} 17. Rad1 {[%emt 0:01:57]} Rad8 {[%emt 0:09:22]} 18. Kh1 {[%emt 0:01:33]} Nc4 {[%emt 0:23:04]} 19. Qc1 {[%emt 0:00:19]} Rfe8 {[%emt 0:00:24]} 20. b3 {[%emt 0:04:24]} Ne5 {[%emt 0:00:31]} 21. h3 {[%emt 0:04:04]} Nxf3 {[%emt 0:10:36]} 22. gxf3 {[%emt 0:00:48]} Nh5 {[%emt 0:00:45]} 23. Rd3 {[%emt 0:05:24]} Be5 {[%emt 0:02:21]} 24. Bxe5 {[%emt 0:02:14]} dxe5 {[%emt 0:00:31]} 25. Rfd1 {[%emt 0:01:06]} Rxd3 {[%emt 0:02:18]} 26. Rxd3 {[%emt 0:00:08]} Qe7 {[%emt 0:01:16]} 27. Kh2 {[%emt 0:01:52]} Bc8 {[%emt 0:03:40]} 28. Nd5 {[%emt 0:00:46]} Qh4 {[%emt 0:02:31]} 29. Qf1 {[%emt 0:00:07]} f5 {[%emt 0:01:49]} 30. Qg2 {[%emt 0:01:22]} Rf8 {[%emt 0:01:19]} 31. exf5 {[%emt 0:00:52]} Bxf5 {[%emt 0:00:11]} 32. Re3 {[%emt 0:00:32]} Bxc2 {[%emt 0:06:37]} 33. Rxe5 {[%emt 0:00:14]} Kh8 {[%emt 0:03:36]} 34. b4 {[%emt 0:00:32]} Bd1 {[%emt 0:01:23]} 35. Qg4 {[%emt 0:00:39]} Qf2+ {[%emt 0:00:31]} 36. Qg2 {[%emt 0:00:19]} Rxf3 {[%emt 0:00:39]} 37. Re8+ {[%emt 0:00:21]} Kg7 {[%emt 0:00:04]} 38. Ndc3 {[%emt 0:00:56]} Bxe2 {[%emt 0:01:19]} 39. Nxe2 {[%emt 0:00:15]} Qxg2+ {[%emt 0:00:45]} 40. Kxg2 {[%emt 0:00:05]} Rxa3 {[%emt 0:00:04]} 41. Re4 {[%emt 0:00:43]} Kf6 {[%emt 0:00:43]} 42. Nd4 {[%emt 0:00:29]} h6 {[%emt 0:02:05]} 43. Re6+ {[%emt 0:00:24]} Kf7 {[%emt 0:00:01]} 44. Re4 {[%emt 0:00:28]} g5 {[%emt 0:00:16]} 45. Nf3 {[%emt 0:00:16]} Nf4+ {[%emt 0:00:44]} 46. Kg3 {[%emt 0:00:09]} Nxh3 {[%emt 0:00:54]} 0-1